fUSD/lending_fUSD_20241123
["ID","MTS","AMOUNT","RATE_DAILY","PERIOD"]
[343075717,1732329063643,-255.675184,0.000839,120]
[343075718,1732329063654,-151.0,0.000839,120]
[343075719,1732329063665,-212.296047,0.000839,7]
[343075720,1732329063679,-255.675184,0.000839,120]
[343075721,1732329063690,-233.888835,0.000839,120]
[343075722,1732329063700,-212.11572,0.000839,120]
[343075723,1732329063711,-212.296047,0.000839,7]
[343075724,1732329063721,-233.888835,0.000839,120]
[343075725,1732329063731,-212.11572,0.000839,120]
[343075726,1732329063742,-950.017311,0.000839,120]
[343075727,1732329063753,-950.017311,0.000839,120]
[343075728,1732329063765,-207.740457,0.000839,120]
[343075729,1732329063776,-348.282074,0.000839,120]
[343075730,1732329063787,-207.740457,0.000839,120]
[343075731,1732329063798,-348.282074,0.000839,120]
[343075732,1732329063809,-900.0,0.00084,85]
[343075733,1732329063819,-150.112311,0.00084498,120]
[343075734,1732329063829,-150.0,0.000848,120]
[343075735,1732329063839,-4171.0496,0.00085,120]
[343075736,1732329063849,-900.0,0.00085,86]
[343075737,1732329063858,-634.4099,0.00085,30]
[343075738,1732329063868,-366.8451,0.00085,30]
[343075739,1732329063878,-3750.0,0.0008525,120]
[343075740,1732329063888,-151.0,0.0008525,120]
[343075741,1732329063900,-559.97,0.00085393,2]
[343075742,1732329063910,-150.112311,0.00085498,120]
[343075743,1732329063920,-162.89,0.0008577,120]
[343075744,1732329063935,-158.78,0.000858,120]
[343075745,1732329063945,-1000.0,0.00085831,120]
[343075746,1732329063955,-10000.0,0.000859,120]
[343075747,1732329063966,-900.0,0.00086,87]
[343075748,1732329063976,-480.41116,0.00086175,30]
[343075749,1732329063986,-480.41116,0.00086175,30]
[343075750,1732329063996,-213.171717,0.00086175,120]
[343075751,1732329064005,-213.171717,0.00086175,120]
[343075752,1732329064015,-166.28,0.00086518,120]
[343075753,1732329064025,-10000.0,0.00086569,120]
[343075754,1732329064035,-500.0,0.00086663,120]
[343075755,1732329064045,-3750.0,0.00086937,120]
[343075756,1732329064055,-151.0,0.00086938,120]
[343075757,1732329064066,-336.316033,0.00086938,120]
[343075758,1732329064076,-336.316033,0.00086938,120]
[343075759,1732329064087,-900.0,0.00087,88]
[343075760,1732329064098,-151.0,0.000871,120]
[343075761,1732329064109,-151.0,0.000871,120]
[343075762,1732329064122,-151.0,0.000871,120]
[343075763,1732329064132,-151.0,0.000871,120]
[343075764,1732329064142,-151.0,0.000871,120]
[343075765,1732329064154,-223.66277,0.000871,110]
[343075766,1732329064165,-223.66277,0.000871,110]
[343075767,1732329064177,-381.374363,0.000871,120]
[343075768,1732329064188,-381.374363,0.000871,120]
[343075769,1732329064199,-215.253612,0.000871,120]
[343075770,1732329064210,-289.053549,0.000871,120]
[343075771,1732329064220,-215.253612,0.000871,120]
[343075772,1732329064230,-289.053549,0.000871,120]
[343075773,1732329064240,-306.452041,0.000871,120]
[343075774,1732329064250,-1247.189874,0.000871,120]
[343075775,1732329064260,-306.452041,0.000871,120]
[343075776,1732329064271,-1247.189874,0.000871,120]
[343075777,1732329064282,-151.0,0.000875,120]
[343075778,1732329064292,-151.0,0.000875,120]
[343075779,1732329064303,-151.0,0.000875,120]
[343075780,1732329064313,-151.0,0.000875,120]
[343075781,1732329064324,-153.328088,0.000875,120]
[343075782,1732329064334,-4974.47919745,0.00087639,30]
[343075783,1732329064344,-559.97,0.00087657,2]
[343075784,1732329064356,-500.0,0.00087799,120]
[343075785,1732329064366,-623.97,0.00087799,120]
[343075786,1732329064375,-623.97,0.00087799,120]
[343075787,1732329064385,-623.97,0.00087799,120]
[343075788,1732329064394,-623.97,0.00087799,120]
[343075789,1732329064405,-624.11382177,0.00087799,120]
[343075790,1732329064415,-862.26,0.00087799,120]
[343075791,1732329064427,-862.26,0.00087799,120]
[343075792,1732329064438,-862.26,0.00087799,120]
[343075793,1732329064448,-862.26,0.00087799,120]
[343075794,1732329064458,-862.28650519,0.00087799,120]
[343075795,1732329064468,-500.0,0.00087799,120]
[343075796,1732329064478,-83330.91082248,0.000878,120]
[343075797,1732329064488,-500.0,0.00087989,120]
[343075798,1732329064498,-500.0,0.00087989,120]
[343075799,1732329064508,-500.0,0.00087989,120]
[343075800,1732329064518,-500.0,0.00087989,120]
[343075801,1732329064529,-261.2276784,0.00087989,120]
[343075802,1732329064539,-500.0,0.00087989,120]
[343075803,1732329064550,-500.0,0.00087989,120]
[343075804,1732329064561,-361.41246419,0.00087989,120]
[343075805,1732329064571,-689.72,0.00087989,120]
[343075806,1732329064582,-689.72,0.00087989,120]
[343075807,1732329064592,-689.72,0.00087989,120]
[343075808,1732329064602,-689.72,0.00087989,120]
[343075809,1732329064614,-689.74649445,0.00087989,120]
[343075810,1732329064627,-1743.87,0.00087989,120]
[343075811,1732329064637,-1743.87,0.00087989,120]
[343075812,1732329064647,-1743.87,0.00087989,120]
[343075813,1732329064657,-1743.87,0.00087989,120]
[343075814,1732329064667,-1744.1037833,0.00087989,120]
[343075815,1732329064681,-109798.25322161,0.0008799,120]
[343075816,1732329064693,-900.0,0.00088,89]
[343075817,1732329064705,-410.3377117,0.00088,120]
[343075818,1732329064715,-5800.0,0.00088099,30]
[343075819,1732329064726,-10000.0,0.0008835,120]
[343075820,1732329064737,-3750.0,0.00088625,120]
[343075821,1732329064748,-273.26,0.0008877,120]
[343075822,1732329064758,-55549.35237465,0.000888,120]
[343075823,1732329064769,-208.403674,0.000888,120]
[343075824,1732329064780,-208.403674,0.000888,120]
[343075825,1732329064791,-300.051,0.000888,120]
[343075826,1732329064803,-300.051,0.000888,120]
[343075827,1732329064813,-151.0,0.000888,120]
[343075828,1732329064823,-151.0,0.000888,120]
[343075829,1732329064833,-151.0,0.000888,120]
[343075830,1732329064843,-436.3605,0.000888,120]
[343075831,1732329064853,-436.3605,0.000888,120]
[343075832,1732329064863,-320.481507,0.000888,120]
[343075833,1732329064874,-320.481507,0.000888,120]
[343075834,1732329064884,-180.030161,0.000888,120]
[343075835,1732329064895,-151.0,0.000888,120]
[343075836,1732329064905,-180.030161,0.000888,120]
[343075837,1732329064915,-151.0,0.000888,120]
[343075838,1732329064927,-151.0,0.000888,120]
[343075839,1732329064937,-418.927375,0.000888,120]
[343075840,1732329064946,-418.927375,0.000888,120]
[343075841,1732329064957,-300.407465,0.000888,120]
[343075842,1732329064967,-300.407465,0.000888,120]
[343075843,1732329064977,-281.342922,0.000888,120]
[343075844,1732329065070,-398.695749,0.000888,120]
[343075845,1732329065091,-398.695749,0.000888,120]
[343075846,1732329065105,-151.0,0.000888,120]
[343075847,1732329065114,-426.890858,0.000888,120]
[343075848,1732329065124,-426.890858,0.000888,120]
[343075849,1732329065134,-314.968009,0.000888,120]
[343075850,1732329065143,-314.968009,0.000888,120]
[343075851,1732329065155,-350.17,0.000888,120]
[343075852,1732329065165,-350.17,0.000888,120]
[343075853,1732329065178,-151.0,0.000888,120]
[343075854,1732329065188,-151.0,0.000888,120]
[343075855,1732329065198,-151.0,0.000888,120]
[343075856,1732329065207,-151.0,0.000888,120]
[343075857,1732329065217,-151.0,0.000888,120]
[343075858,1732329065227,-151.0,0.000888,120]
[343075859,1732329065238,-151.0,0.000888,120]
[343075860,1732329065248,-344.509058,0.000888,120]
[343075861,1732329065258,-151.0,0.000888,120]
[343075862,1732329065268,-344.509058,0.000888,120]
[343075863,1732329065279,-417.95,0.000888,7]
[343075864,1732329065289,-417.95,0.000888,7]
[343075865,1732329065300,-167.460718,0.000888,120]
[343075866,1732329065312,-167.460718,0.000888,120]
[343075867,1732329065322,-151.0,0.000888,120]
[343075868,1732329065332,-151.0,0.000888,120]
[343075869,1732329065341,-238.844802,0.000888,120]
[343075870,1732329065352,-397.408892,0.000888,120]
[343075871,1732329065361,-397.408892,0.000888,120]
[343075872,1732329065371,-299.942097,0.000888,120]
[343075873,1732329065381,-151.0,0.000888,120]
[343075874,1732329065391,-299.942097,0.000888,120]
[343075875,1732329065401,-151.0,0.000888,120]
[343075876,1732329065411,-220.737463,0.000888,120]
[343075877,1732329065421,-220.737463,0.000888,120]
[343075878,1732329065434,-1383.350227,0.000888,120]
[343075879,1732329065444,-1383.350227,0.000888,120]
[343075880,1732329065454,-151.0,0.000888,120]
[343075881,1732329065463,-215.564739,0.000888,120]
[343075882,1732329065473,-215.564739,0.000888,120]
[343075883,1732329065483,-174.922426,0.000888,120]
[343075884,1732329065492,-174.922426,0.000888,120]
[343075885,1732329065503,-255.675184,0.000888,120]
[343075886,1732329065513,-151.0,0.000888,120]
[343075887,1732329065523,-212.296047,0.000888,7]
[343075888,1732329065532,-255.675184,0.000888,120]
[343075889,1732329065542,-233.888835,0.000888,120]
[343075890,1732329065551,-212.11572,0.000888,120]
[343075891,1732329065561,-212.296047,0.000888,7]
[343075892,1732329065570,-233.888835,0.000888,120]
[343075893,1732329065579,-212.11572,0.000888,120]
[343075894,1732329065589,-950.017311,0.000888,120]
[343075895,1732329065597,-950.017311,0.000888,120]
[343075896,1732329065607,-207.740457,0.000888,120]
[343075897,1732329065617,-348.282074,0.000888,120]
[343075898,1732329065627,-207.740457,0.000888,120]
[343075899,1732329065637,-348.282074,0.000888,120]
[343075900,1732329065646,-939.223,0.00088986,120]
[343075901,1732329065656,-170.144,0.00088986,120]
[343075902,1732329065665,-294.797614,0.00088999,120]
[343075903,1732329065676,-289.736501,0.00088999,120]
[343075904,1732329065685,-289.736501,0.00088999,120]
[343075905,1732329065695,-151.0,0.00088999,120]
[343075906,1732329065704,-151.0,0.00088999,120]
[343075907,1732329065714,-151.0,0.00088999,120]
[343075908,1732329065723,-151.0,0.00088999,120]
[343075909,1732329065732,-277.433469,0.00088999,120]
[343075910,1732329065741,-277.433469,0.00088999,120]
[343075911,1732329065750,-212.093178,0.00088999,120]
[343075912,1732329065760,-212.093178,0.00088999,120]
[343075913,1732329065769,-480.41116,0.00088999,30]
[343075914,1732329065778,-480.41116,0.00088999,30]
[343075915,1732329065787,-213.171717,0.00088999,120]
[343075916,1732329065796,-213.171717,0.00088999,120]
[343075917,1732329065806,-900.0,0.00089,90]
[343075918,1732329065815,-477197.82797181,0.00089,120]
[343075919,1732329065825,-31000.2754176,0.00089,120]
[343075920,1732329065835,-3009.66166158,0.00089,120]
[343075921,1732329065844,-294.797614,0.00089,120]
[343075922,1732329065854,-289.736501,0.00089,120]
[343075923,1732329065864,-289.736501,0.00089,120]
[343075924,1732329065873,-151.0,0.00089,120]
[343075925,1732329065883,-151.0,0.00089,120]
[343075926,1732329065892,-151.0,0.00089,120]
[343075927,1732329065902,-208.403674,0.00089,120]
[343075928,1732329065911,-192.940817,0.00089,120]
[343075929,1732329065921,-208.403674,0.00089,120]
[343075930,1732329065932,-192.306033,0.00089,120]
[343075931,1732329065946,-192.306033,0.00089,120]
[343075932,1732329065955,-151.0,0.00089,120]
[343075933,1732329065965,-318.383165,0.00089,120]
[343075934,1732329065975,-318.383165,0.00089,120]
[343075935,1732329065984,-277.433469,0.00089,120]
[343075936,1732329065993,-277.433469,0.00089,120]
[343075937,1732329066003,-320.737155,0.00089,120]
[343075938,1732329066013,-320.737155,0.00089,120]
[343075939,1732329066023,-212.093178,0.00089,120]
[343075940,1732329066034,-212.093178,0.00089,120]
[343075941,1732329066043,-159.391986,0.00089,120]
[343075942,1732329066053,-159.391986,0.00089,120]
[343075943,1732329066063,-151.0,0.00089,120]
[343075944,1732329066074,-164.712135,0.00089,120]
[343075945,1732329066084,-164.712135,0.00089,120]
[343075946,1732329066093,-202.236743,0.00089,120]
[343075947,1732329066103,-202.236743,0.00089,120]
[343075948,1732329066116,-151.0,0.00089,120]
[343075949,1732329066125,-151.0,0.00089,120]
[343075950,1732329066135,-151.0,0.00089,120]
[343075951,1732329066144,-151.0,0.00089,120]
[343075952,1732329066155,-151.0,0.00089,120]
[343075953,1732329066165,-151.0,0.00089,120]
[343075954,1732329066176,-201.112177,0.00089,120]
[343075955,1732329066188,-151.0,0.00089,120]
[343075956,1732329066199,-201.112177,0.00089,120]
[343075957,1732329066209,-151.0,0.00089,120]
[343075958,1732329066220,-151.0,0.00089,120]
[343075959,1732329066230,-151.0,0.00089,120]
[343075960,1732329066241,-151.0,0.00089,120]
[343075961,1732329066251,-151.0,0.00089,120]
[343075962,1732329066261,-151.0,0.00089,120]
[343075963,1732329066270,-151.0,0.00089,120]
[343075964,1732329066280,-151.0,0.00089,120]
[343075965,1732329066289,-151.0,0.00089,120]
[343075966,1732329066299,-151.0,0.00089,120]
[343075967,1732329066308,-151.0,0.00089,120]
[343075968,1732329066318,-151.0,0.00089,120]
[343075969,1732329066328,-223.66277,0.00089,110]
[343075970,1732329066337,-223.66277,0.00089,110]
[343075971,1732329066347,-300.051,0.00089,120]
[343075972,1732329066356,-300.051,0.00089,120]
[343075973,1732329066365,-209.642797,0.00089,120]
[343075974,1732329066376,-151.0,0.00089,120]
[343075975,1732329066385,-197.314853,0.00089,120]
[343075976,1732329066394,-436.3605,0.00089,120]
[343075977,1732329066404,-436.3605,0.00089,120]
[343075978,1732329066413,-320.481507,0.00089,120]
[343075979,1732329066424,-320.481507,0.00089,120]
[343075980,1732329066434,-381.374363,0.00089,120]
[343075981,1732329066444,-180.030161,0.00089,120]
[343075982,1732329066454,-151.0,0.00089,120]
[343075983,1732329066463,-180.030161,0.00089,120]
[343075984,1732329066473,-381.374363,0.00089,120]
[343075985,1732329066483,-151.0,0.00089,120]
[343075986,1732329066493,-151.0,0.00089,120]
[343075987,1732329066502,-418.927375,0.00089,120]
[343075988,1732329066512,-418.927375,0.00089,120]
[343075989,1732329066522,-300.407465,0.00089,120]
[343075990,1732329066532,-300.407465,0.00089,120]
[343075991,1732329066541,-398.695749,0.00089,120]
[343075992,1732329066551,-398.695749,0.00089,120]
[343075993,1732329066560,-151.0,0.00089,120]
[343075994,1732329066570,-426.890858,0.00089,120]
[343075995,1732329066579,-426.890858,0.00089,120]
[343075996,1732329066588,-314.968009,0.00089,120]
[343075997,1732329066598,-314.968009,0.00089,120]
[343075998,1732329066607,-480.41116,0.00089,30]
[343075999,1732329066616,-480.41116,0.00089,30]
[343076000,1732329066626,-215.253612,0.00089,120]
[343076001,1732329066635,-289.053549,0.00089,120]
[343076002,1732329066645,-215.253612,0.00089,120]
[343076003,1732329066655,-289.053549,0.00089,120]
[343076004,1732329066664,-306.452041,0.00089,120]
[343076005,1732329066676,-1247.189874,0.00089,120]
[343076006,1732329066686,-306.452041,0.00089,120]
[343076007,1732329066696,-1247.189874,0.00089,120]
[343076008,1732329066705,-213.171717,0.00089,120]
[343076009,1732329066715,-213.171717,0.00089,120]
[343076010,1732329066724,-167.410319,0.00089,120]
[343076011,1732329066733,-336.316033,0.00089,120]
[343076012,1732329066742,-336.316033,0.00089,120]
[343076013,1732329066752,-350.17,0.00089,120]
[343076014,1732329066761,-350.17,0.00089,120]
[343076015,1732329066771,-151.0,0.00089,120]
[343076016,1732329066780,-151.0,0.00089,120]
[343076017,1732329066789,-151.0,0.00089,120]
[343076018,1732329066799,-151.0,0.00089,120]
[343076019,1732329066809,-151.0,0.00089,120]
[343076020,1732329066818,-151.0,0.00089,120]
[343076021,1732329066827,-151.0,0.00089,120]
[343076022,1732329066837,-344.509058,0.00089,120]
[343076023,1732329066847,-247.38763,0.00089,120]
[343076024,1732329066858,-344.509058,0.00089,120]
[343076025,1732329066867,-417.95,0.00089,7]
[343076026,1732329066877,-417.95,0.00089,7]
[343076027,1732329066886,-167.460718,0.00089,120]
[343076028,1732329066895,-167.460718,0.00089,120]
[343076029,1732329066905,-153.003721,0.00089,120]
[343076030,1732329066914,-151.0,0.00089,120]
[343076031,1732329066926,-397.408892,0.00089,120]
[343076032,1732329066936,-397.408892,0.00089,120]
[343076033,1732329066946,-299.942097,0.00089,120]
[343076034,1732329066955,-151.0,0.00089,120]
[343076035,1732329066965,-299.942097,0.00089,120]
[343076036,1732329066975,-151.0,0.00089,120]
[343076037,1732329066985,-220.737463,0.00089,120]
[343076038,1732329067088,-220.737463,0.00089,120]
[343076039,1732329067099,-1383.350227,0.00089,120]
[343076040,1732329067113,-1383.350227,0.00089,120]
[343076041,1732329067124,-151.0,0.00089,120]
[343076042,1732329067133,-215.564739,0.00089,120]
[343076043,1732329067143,-215.564739,0.00089,120]
[343076044,1732329067155,-174.922426,0.00089,120]
[343076045,1732329067164,-174.922426,0.00089,120]
[343076046,1732329067176,-255.675184,0.00089,120]
[343076047,1732329067185,-152.366822,0.00089,120]
[343076048,1732329067196,-212.296047,0.00089,7]
[343076049,1732329067206,-255.675184,0.00089,120]
[343076050,1732329067215,-233.888835,0.00089,120]
[343076051,1732329067225,-212.11572,0.00089,120]
[343076052,1732329067234,-212.296047,0.00089,7]
[343076053,1732329067243,-233.888835,0.00089,120]
[343076054,1732329067252,-212.11572,0.00089,120]
[343076055,1732329067261,-152.6381,0.00089,120]
[343076056,1732329067270,-950.017311,0.00089,120]
[343076057,1732329067279,-950.017311,0.00089,120]
[343076058,1732329067290,-207.740457,0.00089,120]
[343076059,1732329067300,-348.282074,0.00089,120]
[343076060,1732329067309,-207.740457,0.00089,120]
[343076061,1732329067319,-348.282074,0.00089,120]
[343076062,1732329067328,-3962.17,0.00089038,120]
[343076063,1732329067338,-157.56,0.00089041,120]
[343076064,1732329067348,-150.52,0.00089041,120]
[343076065,1732329067357,-166.51,0.00089041,120]
[343076066,1732329067366,-5000.0,0.0008905,120]
[343076067,1732329067375,-3700.71,0.00089082,120]
[343076068,1732329067385,-638.7,0.00089103,120]
[343076069,1732329067395,-5000.0,0.00089135,120]
[343076070,1732329067404,-5000.0,0.00089138,120]
[343076071,1732329067413,-5000.0,0.00089179,120]
[343076072,1732329067423,-2096.81,0.00089199,120]
[343076073,1732329067436,-151.4,0.00089201,120]
[343076074,1732329067450,-333.17,0.00089201,120]
[343076075,1732329067460,-5000.0,0.00089349,120]
[343076076,1732329067469,-5000.0,0.00089353,120]
[343076077,1732329067480,-5000.0,0.00089362,120]
[343076078,1732329067489,-5000.0,0.000894,120]
[343076079,1732329067500,-156.03,0.000894,81]
[343076080,1732329067509,-156.03,0.000894,81]
[343076081,1732329067519,-5000.0,0.00089414,120]
[343076082,1732329067528,-4539.59,0.00089414,120]
[343076083,1732329067537,-5000.0,0.0008944,120]
[343076084,1732329067546,-5000.0,0.0008946,120]
[343076085,1732329067555,-2034.39,0.00089469,120]
[343076086,1732329067565,-1046.76,0.00089482,120]
[343076087,1732329067574,-5000.0,0.00089525,120]
[343076088,1732329067584,-25000.0,0.00089543,120]
[343076089,1732329067593,-2035.26946703,0.00089582,30]
[343076090,1732329067602,-25000.0,0.00089582,120]
[343076091,1732329067611,-1689.9,0.00089651,120]
[343076092,1732329067621,-1004.98,0.00089665,120]
[343076093,1732329067630,-160.21,0.00089715,120]
[343076094,1732329067639,-5000.0,0.00089778,120]
[343076095,1732329067649,-4388.32,0.00089788,120]
[343076096,1732329067658,-1821.43,0.00089799,120]
[343076097,1732329067668,-5000.0,0.00089802,120]
[343076098,1732329067679,-5000.0,0.00089862,120]
[343076099,1732329067689,-2676.2,0.00089897,120]
[343076100,1732329067698,-211.3776021,0.000899,120]
[343076101,1732329067708,-211.3776021,0.000899,120]
[343076102,1732329067718,-211.3776021,0.000899,120]
[343076103,1732329067727,-211.3776021,0.000899,120]
[343076104,1732329067737,-211.3776021,0.000899,120]
[343076105,1732329067746,-211.3776021,0.000899,120]
[343076106,1732329067755,-211.3776021,0.000899,120]
[343076107,1732329067766,-211.3776021,0.000899,120]
[343076108,1732329067775,-211.3776021,0.000899,120]
[343076109,1732329067784,-211.3776021,0.000899,120]
[343076110,1732329067793,-211.3776021,0.000899,120]
[343076111,1732329067803,-211.3776021,0.000899,120]
[343076112,1732329067813,-559.97,0.0008992,2]
[343076113,1732329067822,-5000.0,0.00089933,120]
[343076114,1732329067832,-25000.0,0.00089972,120]
[343076115,1732329067842,-5000.0,0.00089974,120]
[343076116,1732329067852,-90847.16919,0.00089999,2]
[343076117,1732329067862,-301.53,0.0009,2]
[343076118,1732329067872,-900.0,0.0009,91]
[343076119,1732329067881,-2437.92947463,0.0009,120]
[343076120,1732329067891,-4985.77354912,0.0009,120]
[343076121,1732329067901,-4768.78623798,0.0009,30]
[343076122,1732329067911,-6467.04349488,0.0009,120]
[343076123,1732329067921,-350.55690341,0.0009,120]
[343076124,1732329067938,-331.43692861,0.0009,120]
[343076125,1732329067948,-155.0,0.0009,120]
[343076126,1732329067958,-500.0,0.0009,120]
[343076127,1732329067968,-151.0,0.0009,120]
[343076128,1732329067978,-151.0,0.0009,120]
[343076129,1732329067987,-284.156399,0.0009,120]
[343076130,1732329067997,-151.0,0.0009,120]
[343076131,1732329068007,-151.0,0.0009,120]
[343076132,1732329068016,-151.0,0.0009,120]
[343076133,1732329068025,-161.338612,0.0009,120]
[343076134,1732329068035,-151.0,0.0009,120]
[343076135,1732329068045,-151.0,0.0009,120]
[343076136,1732329068054,-223.66277,0.0009,110]
[343076137,1732329068064,-223.66277,0.0009,110]
[343076138,1732329068074,-300.051,0.0009,120]
[343076139,1732329068083,-300.051,0.0009,120]
[343076140,1732329068093,-151.0,0.0009,120]
[343076141,1732329068103,-436.3605,0.0009,120]
[343076142,1732329068117,-436.3605,0.0009,120]
[343076143,1732329068126,-320.481507,0.0009,120]
[343076144,1732329068135,-320.481507,0.0009,120]
[343076145,1732329068145,-381.374363,0.0009,120]
[343076146,1732329068156,-180.030161,0.0009,120]
[343076147,1732329068166,-151.0,0.0009,120]
[343076148,1732329068179,-180.030161,0.0009,120]
[343076149,1732329068189,-381.374363,0.0009,120]
[343076150,1732329068198,-151.0,0.0009,120]
[343076151,1732329068208,-290.867374,0.0009,120]
[343076152,1732329068219,-418.927375,0.0009,120]
[343076153,1732329068229,-418.927375,0.0009,120]
[343076154,1732329068239,-300.407465,0.0009,120]
[343076155,1732329068250,-300.407465,0.0009,120]
[343076156,1732329068260,-398.695749,0.0009,120]
[343076157,1732329068269,-398.695749,0.0009,120]
[343076158,1732329068279,-151.0,0.0009,120]
[343076159,1732329068288,-426.890858,0.0009,120]
[343076160,1732329068298,-426.890858,0.0009,120]
[343076161,1732329068308,-314.968009,0.0009,120]
[343076162,1732329068318,-314.968009,0.0009,120]
[343076163,1732329068328,-480.41116,0.0009,30]
[343076164,1732329068337,-480.41116,0.0009,30]
[343076165,1732329068347,-215.253612,0.0009,120]
[343076166,1732329068357,-289.053549,0.0009,120]
[343076167,1732329068367,-215.253612,0.0009,120]
[343076168,1732329068376,-289.053549,0.0009,120]
[343076169,1732329068385,-306.452041,0.0009,120]
[343076170,1732329068395,-1247.189874,0.0009,120]
[343076171,1732329068404,-306.452041,0.0009,120]
[343076172,1732329068414,-1247.189874,0.0009,120]
[343076173,1732329068424,-213.171717,0.0009,120]
[343076174,1732329068437,-213.171717,0.0009,120]
[343076175,1732329068446,-336.316033,0.0009,120]
[343076176,1732329068456,-336.316033,0.0009,120]
[343076177,1732329068465,-350.17,0.0009,120]
[343076178,1732329068475,-350.17,0.0009,120]
[343076179,1732329068485,-151.0,0.0009,120]
[343076180,1732329068495,-151.0,0.0009,120]
[343076181,1732329068504,-151.0,0.0009,120]
[343076182,1732329068513,-151.0,0.0009,120]
[343076183,1732329068523,-151.0,0.0009,120]
[343076184,1732329068533,-151.0,0.0009,120]
[343076185,1732329068542,-151.0,0.0009,120]
[343076186,1732329068551,-344.509058,0.0009,120]
[343076187,1732329068561,-344.509058,0.0009,120]
[343076188,1732329068571,-417.95,0.0009,7]
[343076189,1732329068581,-417.95,0.0009,7]
[343076190,1732329068590,-167.460718,0.0009,120]
[343076191,1732329068600,-167.460718,0.0009,120]
[343076192,1732329068609,-151.0,0.0009,120]
[343076193,1732329068619,-397.408892,0.0009,120]
[343076194,1732329068628,-397.408892,0.0009,120]
[343076195,1732329068638,-151.0,0.0009,120]
[343076196,1732329068648,-299.942097,0.0009,120]
[343076197,1732329068658,-299.942097,0.0009,120]
[343076198,1732329068668,-151.0,0.0009,120]
[343076199,1732329068679,-220.737463,0.0009,120]
[343076200,1732329068689,-220.737463,0.0009,120]
[343076201,1732329068699,-1383.350227,0.0009,120]
[343076202,1732329068708,-1383.350227,0.0009,120]
[343076203,1732329068718,-151.0,0.0009,120]
[343076204,1732329068727,-215.564739,0.0009,120]
[343076205,1732329068737,-215.564739,0.0009,120]
[343076206,1732329068746,-174.922426,0.0009,120]
[343076207,1732329068756,-174.922426,0.0009,120]
[343076208,1732329068766,-255.675184,0.0009,120]
[343076209,1732329068776,-255.675184,0.0009,120]
[343076210,1732329068786,-212.296047,0.0009,7]
[343076211,1732329068797,-233.888835,0.0009,120]
[343076212,1732329068807,-212.11572,0.0009,120]
[343076213,1732329068817,-212.296047,0.0009,7]
[343076214,1732329068827,-233.888835,0.0009,120]
[343076215,1732329068914,-212.11572,0.0009,120]
[343076216,1732329068935,-950.017311,0.0009,120]